fUSD/lending_fUSD_20240329
["ID","MTS","AMOUNT","RATE_DAILY","PERIOD"]
[321012890,1711752635628,-150.0,0.00048733,7]
[321012891,1711752635638,-150.0,0.00048756,7]
[321012892,1711752635649,-150.0,0.00048772,7]
[321012893,1711752635658,-150.0,0.00048779,7]
[321012894,1711752635668,-156.53,0.00048793,2]
[321012895,1711752635678,-160.1076138,0.00048795,30]
[321012896,1711752635687,-150.0,0.00048795,7]
[321012897,1711752635696,-7036.88342247,0.00048815,2]
[321012898,1711752635705,-150.0,0.00048815,7]
[321012899,1711752635715,-150.0,0.00048838,7]
[321012900,1711752635725,-156.53,0.00048842,2]
[321012901,1711752635735,-150.0,0.00048851,7]
[321012902,1711752635745,-150.0,0.00048878,7]
[321012903,1711752635755,-156.53,0.00048891,2]
[321012904,1711752635765,-150.0,0.00048894,7]
[321012905,1711752635775,-150.0,0.00048924,7]
[321012906,1711752635785,-150.0,0.00048927,7]
[321012907,1711752635795,-156.53,0.00048939,2]
[321012908,1711752635806,-2192.07207557,0.00048947,25]
[321012909,1711752635816,-150.0,0.00048955,7]
[321012910,1711752635826,-694.63297,0.00048977,7]
[321012911,1711752635836,-150.0,0.00048985,7]
[321012912,1711752635846,-156.53,0.00048988,2]
[321012913,1711752635857,-150.0,0.00048995,7]
[321012914,1711752635866,-1200.0,0.00049,4]
[321012915,1711752635876,-13892.78794733,0.00049,30]
[321012916,1711752635886,-1200.0,0.00049,50]
[321012917,1711752635897,-660.68551273,0.00049,120]
[321012918,1711752635906,-150.0,0.00049006,7]
[321012919,1711752635916,-150.0,0.00049021,7]
[321012920,1711752635926,-150.0,0.00049024,7]
[321012921,1711752635935,-156.53,0.00049037,2]
[321012922,1711752635945,-150.0,0.00049073,7]
[321012923,1711752635955,-150.0,0.00049077,7]
[321012924,1711752635965,-150.17,0.00049085,2]
[321012925,1711752635975,-1666.8918526,0.00049088,4]
[321012926,1711752635984,-207.57442402,0.00049088,4]
[321012927,1711752635994,-3540.2846752,0.00049088,4]
[321012928,1711752636004,-246.74461914,0.00049088,4]
[321012929,1711752636013,-155.0,0.00049088,4]
[321012930,1711752636023,-639.73539017,0.00049088,4]
[321012931,1711752636032,-155.77449261,0.00049088,4]
[321012932,1711752636042,-376.29834861,0.00049088,4]
[321012933,1711752636050,-176.45993283,0.00049088,4]
[321012934,1711752636060,-155.59569249,0.00049088,4]
[321012935,1711752636069,-616.71914988,0.00049088,4]
[321012936,1711752636078,-487.96220756,0.00049088,4]
[321012937,1711752636087,-155.52093473,0.00049088,2]
[321012938,1711752636097,-155.20235387,0.00049088,4]
[321012939,1711752636107,-155.59801524,0.00049088,4]
[321012940,1711752636116,-155.0,0.00049088,4]
[321012941,1711752636125,-357.46419469,0.00049088,4]
[321012942,1711752636134,-256.72185983,0.00049088,4]
[321012943,1711752636144,-690.32,0.000491,2]
[321012944,1711752636153,-150.0,0.000491,9]
[321012945,1711752636161,-150.0,0.000491,9]
[321012946,1711752636171,-300.0,0.00049134,7]
[321012947,1711752636180,-150.0,0.00049171,7]
[321012948,1711752636191,-150.0,0.00049175,7]
[321012949,1711752636200,-150.0,0.00049191,7]
[321012950,1711752636210,-150.0,0.00049192,7]
[321012951,1711752636220,-150.0,0.00049202,7]
[321012952,1711752636229,-196.63333333,0.00049205,120]
[321012953,1711752636238,-150.0,0.00049208,7]
[321012954,1711752636247,-150.0,0.00049212,7]
[321012955,1711752636256,-150.0,0.00049225,2]
[321012956,1711752636266,-150.0,0.00049225,2]
[321012957,1711752636276,-150.0,0.00049225,2]
[321012958,1711752636285,-150.0,0.00049225,2]
[321012959,1711752636294,-150.0,0.00049225,2]
[321012960,1711752636303,-150.0,0.00049225,2]
[321012961,1711752636313,-150.0,0.00049225,2]
[321012962,1711752636322,-150.0,0.00049225,2]
[321012963,1711752636332,-150.0,0.00049239,2]
[321012964,1711752636341,-150.0,0.00049239,2]
[321012965,1711752636351,-150.0,0.00049239,2]
[321012966,1711752636361,-362.63,0.00049239,2]
[321012967,1711752636370,-150.0,0.00049244,7]
[321012968,1711752636380,-150.0,0.00049255,7]
[321012969,1711752636390,-1500.0,0.00049284,7]
[321012970,1711752636399,-150.0,0.00049285,7]
[321012971,1711752636408,-574.49807755,0.00049302,7]
[321012972,1711752636418,-150.0,0.00049315,7]
[321012973,1711752636427,-1000.0,0.00049315,60]
[321012974,1711752636437,-1682.0,0.00049315,60]
[321012975,1711752636447,-159.57,0.00049315,30]
[321012976,1711752636456,-158.34528515,0.0004932,7]
[321012977,1711752636466,-150.0,0.00049334,7]
[321012978,1711752636475,-150.0,0.0004934,7]
[321012979,1711752636485,-150.0,0.00049344,7]
[321012980,1711752636495,-150.0,0.00049345,7]
[321012981,1711752636504,-150.0,0.00049347,7]
[321012982,1711752636514,-150.0,0.00049382,7]
[321012983,1711752636524,-150.0,0.00049394,7]
[321012984,1711752636534,-150.0,0.00049399,7]
[321012985,1711752636543,-150.0,0.00049414,7]
[321012986,1711752636553,-150.0,0.00049451,7]
[321012987,1711752636563,-150.0,0.00049466,7]
[321012988,1711752636577,-1500.0,0.00049476,7]
[321012989,1711752636587,-150.0,0.00049493,7]
[321012990,1711752636597,-150.0,0.00049504,7]
[321012991,1711752636609,-229.25877669,0.00049507,3]
[321012992,1711752636619,-150.0,0.00049508,7]
[321012993,1711752636629,-150.0,0.00049536,7]
[321012994,1711752636639,-150.0,0.00049565,7]
[321012995,1711752636650,-150.0,0.00049568,7]
[321012996,1711752636660,-150.0,0.00049573,7]
[321012997,1711752636670,-150.0,0.00049578,7]
[321012998,1711752636680,-794.72613861,0.00049578,10]
[321012999,1711752636689,-788.37437772,0.00049578,10]
[321013000,1711752636699,-3054.62235358,0.00049578,10]
[321013001,1711752636709,-150.0,0.00049587,7]
[321013002,1711752636719,-150.0,0.00049588,7]
[321013003,1711752636729,-150.0,0.00049589,7]
[321013004,1711752636739,-150.0,0.0004959,7]
[321013005,1711752636749,-200.0,0.00049599,30]
[321013006,1711752636759,-151.0,0.000496,2]
[321013007,1711752636769,-250.49088,0.000496,2]
[321013008,1711752636778,-800.0,0.000496,30]
[321013009,1711752636788,-150.0,0.000496,10]
[321013010,1711752636797,-150.0,0.000496,10]
[321013011,1711752636807,-200.0,0.00049601,30]
[321013012,1711752636816,-200.0,0.00049602,30]
[321013013,1711752636826,-800.0,0.00049602,30]
[321013014,1711752636835,-200.0,0.00049602,30]
[321013015,1711752636845,-200.0,0.00049604,30]
[321013016,1711752636854,-800.0,0.00049605,30]
[321013017,1711752636865,-200.0,0.00049605,30]
[321013018,1711752636874,-200.0,0.00049607,30]
[321013019,1711752636883,-800.0,0.00049607,30]
[321013020,1711752636892,-200.0,0.00049607,30]
[321013021,1711752636901,-10000.0,0.00049612,2]
[321013022,1711752636910,-150.0,0.00049616,7]
[321013023,1711752636919,-2192.07207557,0.00049616,26]
[321013024,1711752636929,-150.0,0.00049616,7]
[321013025,1711752636938,-150.0,0.00049623,7]
[321013026,1711752636947,-152.0,0.00049623,3]
[321013027,1711752636957,-268.26,0.0004963,2]
[321013028,1711752636967,-150.0,0.00049646,7]
[321013029,1711752636976,-173.033007,0.00049658,82]
[321013030,1711752636985,-150.0,0.00049673,7]
[321013031,1711752636995,-300.0,0.00049676,7]
[321013032,1711752637005,-173.033007,0.00049678,83]
[321013033,1711752637014,-1850.77,0.0004968,30]
[321013034,1711752637024,-150.0,0.00049683,7]
[321013035,1711752637034,-150.0,0.00049686,7]
[321013036,1711752637043,-150.0,0.00049691,7]
[321013037,1711752637052,-150.0,0.00049695,7]
[321013038,1711752637063,-173.033007,0.00049698,84]
[321013039,1711752637073,-150.0,0.000497,10]
[321013040,1711752637082,-150.0,0.00049709,7]
[321013041,1711752637092,-173.033007,0.00049718,85]
[321013042,1711752637102,-150.0,0.00049721,7]
[321013043,1711752637111,-150.0,0.00049731,7]
[321013044,1711752637120,-173.033007,0.00049738,86]
[321013045,1711752637129,-150.0,0.00049752,7]
[321013046,1711752637139,-173.033007,0.00049758,87]
[321013047,1711752637148,-500.0,0.00049758,2]
[321013048,1711752637157,-500.0,0.00049758,2]
[321013049,1711752637167,-500.0,0.00049758,2]
[321013050,1711752637176,-407.0968,0.00049758,2]
[321013051,1711752637185,-1000.0,0.00049758,2]
[321013052,1711752637194,-1000.0,0.00049758,2]
[321013053,1711752637203,-1000.0,0.00049758,2]
[321013054,1711752637213,-1000.0,0.00049758,2]
[321013055,1711752637221,-1000.0,0.00049758,2]
[321013056,1711752637230,-1000.0,0.00049758,2]
[321013057,1711752637239,-1000.0,0.00049758,2]
[321013058,1711752637248,-1000.0,0.00049758,2]
[321013059,1711752637257,-1000.0,0.00049758,2]
[321013060,1711752637266,-1000.0,0.00049758,2]
[321013061,1711752637275,-1000.0,0.00049758,2]
[321013062,1711752637284,-1000.0,0.00049758,2]
[321013063,1711752637293,-1000.0,0.00049758,2]
[321013064,1711752637303,-1000.0,0.00049758,2]
[321013065,1711752637312,-1000.0,0.00049758,2]
[321013066,1711752637321,-1000.0,0.00049758,2]
[321013067,1711752637330,-1000.0,0.00049758,2]
[321013068,1711752637339,-1000.0,0.00049758,2]
[321013069,1711752637348,-1000.0,0.00049758,2]
[321013070,1711752637358,-1000.0,0.00049758,2]
[321013071,1711752637367,-1000.0,0.00049758,2]
[321013072,1711752637376,-1000.0,0.00049758,2]
[321013073,1711752637385,-1000.0,0.00049758,2]
[321013074,1711752637395,-1000.0,0.00049758,2]
[321013076,1711752637404,-1000.0,0.00049758,2]
[321013077,1711752637412,-1000.0,0.00049758,2]
[321013078,1711752637421,-1000.0,0.00049758,2]
[321013079,1711752637430,-1000.0,0.00049758,2]
[321013080,1711752637440,-1000.0,0.00049758,2]
[321013081,1711752637449,-1000.0,0.00049758,2]
[321013082,1711752637458,-1000.0,0.00049758,2]
[321013084,1711752637467,-1000.0,0.00049758,2]
[321013086,1711752637476,-1000.0,0.00049758,2]
[321013088,1711752637485,-1000.0,0.00049758,2]
[321013089,1711752637494,-1000.0,0.00049758,2]
[321013091,1711752637503,-1000.0,0.00049758,2]
[321013093,1711752637512,-1000.0,0.00049758,2]
[321013095,1711752637521,-1000.0,0.00049758,2]
[321013097,1711752637531,-1000.0,0.00049758,2]
[321013099,1711752637540,-526.9447,0.00049758,2]
[321013101,1711752637549,-500.0,0.00049758,2]
[321013103,1711752637558,-500.0,0.00049758,2]
[321013105,1711752637569,-500.0,0.00049758,2]
[321013106,1711752637579,-519.9206,0.00049758,2]
[321013107,1711752637588,-173.033007,0.00049778,88]
[321013108,1711752637598,-173.033007,0.00049798,89]
[321013109,1711752637609,-4567.97588281,0.000498,120]
[321013111,1711752637619,-150.0,0.00049805,7]
[321013112,1711752637628,-196.63333333,0.00049808,120]
[321013114,1711752637637,-150.0,0.00049817,7]
[321013116,1711752637646,-300.0,0.00049817,30]
[321013118,1711752637656,-173.033007,0.00049818,90]
[321013120,1711752637666,-150.0,0.00049828,7]
[321013122,1711752637675,-150.0,0.00049834,7]
[321013124,1711752637684,-173.033007,0.00049838,91]
[321013126,1711752637693,-307.68911322,0.00049838,7]
[321013128,1711752637703,-150.0,0.0004984,7]
[321013131,1711752637713,-150.0,0.00049841,7]
[321013133,1711752637722,-150.0,0.00049842,7]
[321013134,1711752637731,-150.0,0.00049849,7]
[321013136,1711752637740,-150.0,0.00049853,7]
[321013138,1711752637749,-173.033007,0.00049858,92]
[321013140,1711752637759,-173.033007,0.00049878,93]
[321013142,1711752637768,-160.1076138,0.00049885,30]
[321013144,1711752637777,-1155.49316775,0.00049891,4]
[321013146,1711752637787,-150.0,0.00049896,7]
[321013148,1711752637796,-173.033007,0.00049898,94]
[321013150,1711752637805,-23201.178449,0.000499,2]
[321013152,1711752637814,-367.97168627,0.000499,2]
[321013154,1711752637823,-670.20648946,0.000499,2]
[321013156,1711752637833,-1545.94293018,0.000499,2]
[321013158,1711752637842,-501.9629204,0.000499,2]
[321013160,1711752637852,-221.0,0.000499,30]
[321013161,1711752637860,-230.86895245,0.00049903,7]
[321013162,1711752637870,-150.0,0.00049914,7]
[321013163,1711752637879,-173.033007,0.00049918,95]
[321013164,1711752637888,-152.26620324,0.00049929,44]
[321013165,1711752637897,-173.033007,0.00049938,96]
[321013166,1711752637906,-150.0,0.00049953,7]
[321013167,1711752637915,-173.033007,0.00049958,97]
[321013168,1711752637924,-184.0,0.0004996,15]
[321013169,1711752637933,-150.0,0.0004996,7]
[321013170,1711752637942,-150.5,0.0004997,15]
[321013171,1711752637951,-200.0,0.0004997,15]
[321013172,1711752637960,-160.0,0.0004997,15]
[321013173,1711752637968,-150.0,0.00049974,7]
[321013174,1711752637977,-173.033007,0.00049978,98]
[321013175,1711752637986,-150.5,0.0004998,15]
[321013176,1711752637996,-200.0,0.0004998,15]
[321013177,1711752638005,-160.0,0.0004998,15]
[321013178,1711752638015,-150.0,0.00049989,7]
[321013179,1711752638024,-200.0,0.0004999,15]
[321013180,1711752638034,-160.0,0.0004999,15]
[321013181,1711752638043,-150.0,0.00049994,7]
[321013182,1711752638052,-173.033007,0.00049998,99]
[321013184,1711752638062,-1000.0,0.00049999,120]
[321013187,1711752638071,-330.33520594,0.00049999,60]
[321013188,1711752638080,-150.0,0.00049999,30]
[321013190,1711752638090,-300.0,0.00049999,60]
[321013191,1711752638099,-586.04906156,0.00049999,120]
[321013192,1711752638110,-150.0,0.00049999,30]
[321013193,1711752638119,-19009.63074308,0.00049999,36]
[321013199,1711752640593,-172.5891312,0.0004156,2]
[321013200,1711752640602,-3210.24555688,0.000416,2]
[321013208,1711752643389,-3566.99055387,0.000416,2]
[321013209,1711752643399,-172.5891312,0.00043764,2]
[321013210,1711752643408,-172.5891312,0.00045967,2]
[321013211,1711752643418,-150.0,0.00048047,7]
[321013212,1711752643428,-150.0,0.00048093,7]
[321013213,1711752643437,-172.5891312,0.00048171,2]
[321013214,1711752643447,-150.0,0.00048193,7]
[321013215,1711752643456,-150.0,0.00048209,7]
[321013216,1711752643465,-150.0,0.00048255,7]
[321013217,1711752643474,-150.0,0.0004833,7]
[321013218,1711752643483,-792.8794639,0.00048368,2]
[321013219,1711752643737,-254.1205361,0.00048368,2]
[321013220,1711752643746,-150.0,0.00048443,7]
[321013221,1711752643756,-150.0,0.00048635,7]
[321013222,1711752643765,-150.0,0.00048715,7]
[321013223,1711752643774,-150.0,0.00048733,7]
[321013224,1711752643783,-150.0,0.00048778,7]
[321013225,1711752643793,-60.7929301,0.00048797,7]
[321013226,1711752643805,-89.2070699,0.00048797,7]
[321013227,1711752643814,-150.0,0.00048824,7]
[321013228,1711752643823,-81.3429301,0.00048873,7]
[321013229,1711752643835,-68.6570699,0.00048873,7]
[321013230,1711752643844,-150.0,0.00048889,7]
[321013231,1711752643854,-150.0,0.00048913,7]
[321013232,1711752643867,-150.0,0.00048947,7]
[321013233,1711752643876,-150.0,0.00048948,7]
[321013234,1711752643885,-150.0,0.00048955,7]
[321013235,1711752643894,-150.0,0.00049002,7]
[321013236,1711752643903,-150.0,0.00049181,7]
[321013237,1711752643912,-150.0,0.00049224,7]
[321013238,1711752643921,-150.0,0.00049245,7]
[321013239,1711752643931,-150.0,0.00049284,7]
[321013240,1711752643940,-150.0,0.00049432,7]
[321013241,1711752643950,-150.0,0.00049487,7]
[321013242,1711752643958,-150.0,0.00049495,7]
[321013243,1711752643968,-150.0,0.00049543,7]
[321013244,1711752643977,-150.0,0.00049613,7]
[321013245,1711752643986,-150.0,0.00049618,7]
[321013246,1711752643996,-150.0,0.00049631,7]
[321013247,1711752644004,-150.0,0.00049637,7]
[321013248,1711752644013,-150.0,0.00049661,7]
[321013249,1711752644022,-150.0,0.00049693,7]
[321013250,1711752644031,-150.0,0.00049707,7]
[321013251,1711752644041,-150.0,0.00049738,7]
[321013252,1711752644050,-150.0,0.00049739,7]
[321013253,1711752644059,-150.0,0.00049744,7]
[321013254,1711752644069,-150.0,0.00049745,7]
[321013255,1711752644078,-150.0,0.00049751,7]
[321013256,1711752644087,-150.0,0.00049754,7]
[321013257,1711752644096,-150.0,0.00049758,7]
[321013258,1711752644106,-150.0,0.00049762,7]
[321013259,1711752644119,-150.0,0.00049776,7]
[321013260,1711752644129,-150.0,0.0004978,7]
[321013261,1711752644138,-150.0,0.00049787,7]
[321013262,1711752644149,-150.0,0.0004982,7]
[321013263,1711752644158,-150.0,0.00049831,7]
[321013264,1711752644167,-150.0,0.00049833,7]
[321013265,1711752644176,-150.0,0.00049856,7]
[321013266,1711752644186,-150.0,0.00049858,7]
[321013267,1711752644195,-150.0,0.00049859,7]
[321013268,1711752644204,-150.0,0.00049864,7]
[321013269,1711752644213,-150.0,0.00049869,7]
[321013270,1711752644222,-150.0,0.00049878,7]
[321013271,1711752644231,-150.0,0.00049881,7]
[321013272,1711752644241,-150.0,0.00049882,7]
[321013273,1711752644251,-150.0,0.00049889,7]
[321013274,1711752644260,-150.0,0.00049898,7]
[321013275,1711752644269,-150.0,0.000499,7]
[321013276,1711752644279,-364.38435016,0.000499,2]
[321013277,1711752644288,-150.0,0.0004992,7]
[321013278,1711752644297,-150.0,0.00049926,7]
[321013279,1711752644307,-150.0,0.00049935,7]
[321013280,1711752644317,-150.0,0.0004994,7]
[321013281,1711752644326,-150.0,0.00049945,7]
[321013282,1711752644335,-150.0,0.00049949,7]
[321013283,1711752644344,-150.0,0.00049951,7]
[321013284,1711752644353,-150.0,0.00049955,7]
[321013285,1711752644365,-150.0,0.00049965,7]
[321013286,1711752644374,-150.0,0.00049976,7]
[321013287,1711752644383,-3783.55687709,0.00049997,2]
[321013288,1711752644401,-776.86765506,0.00049997,2]
[321013289,1711752644412,-10292.81082865,0.00049997,2]
[321013290,1711752645857,-300.0,0.00049773,7]
[321013291,1711752645867,-21520.50643872,0.00049997,2]
[321013292,1711752679786,10625.27571868,0.0003143,4]
[321013293,1711752688455,4379.30624586,0.00042185,30]
[321013296,1711752839271,6724.66198999,0.00025,2]
[321013297,1711752839298,14816.72589833,0.00025,2]
[321013299,1711752854088,271.82948454,0.00022,2]
[321013300,1711752924229,359.48685988,0.00022,2]
[321013301,1711752944208,359.48685988,0.00022,2]
[321013302,1711752966197,359.63031326,0.00022,2]
[321013303,1711752982198,359.3434065,0.00022,2]
[321013304,1711752998212,301.12613202,0.00022,2]
[321013305,1711753351567,346.73112929,0.00022,2]
[321013306,1711753359190,2337.72155484,0.00022,2]
[321013307,1711753359214,114.00836965,0.00022,2]
[321013308,1711753560908,-16100.7760519,0.0003,4]
[321013309,1711753637107,-697.92976278,0.00029992,2]
[321013310,1711753644125,-357.30337636,0.00029992,2]
[321013311,1711753644145,-781.27637635,0.00029993,2]
[321013312,1711753644165,-22232.9639755,0.0003,2]
[321013313,1711753711272,-405.1495155,0.0003,4]
[321013317,1711753758092,-15838.0470245,0.0003,2]
[321013318,1711753758115,-185.30985478,0.0003,2]
[321013319,1711753758136,-250.0,0.00033,3]
[321013320,1711753758165,-300.0,0.00035,3]
[321013321,1711753758187,-332.0,0.000383,2]
[321013322,1711753758210,-161.30634455,0.00038378,2]
[321013323,1711753758231,-3287.86422104,0.00038576,5]
[321013410,1711753831851,-155.18542528,0.00040271,4]
[321013411,1711753831860,-409.42002644,0.00040919,4]
[321013412,1711753831869,-2000.0,0.00041093,2]
[321013413,1711753831878,-168.33486966,0.00041093,4]
[321013414,1711753831889,-4360.53,0.00041093,10]
[321013415,1711753831902,-636.40843308,0.00041094,4]
[321013416,1711753831911,-155.0,0.00041094,4]
[321013417,1711753831921,-374.83287698,0.00041094,4]
[321013418,1711753831930,-1039.8118,0.00041094,4]
[321013419,1711753831940,-173.24,0.00041097,2]
[321013420,1711753831949,-150.0,0.00041449,2]
[321013421,1711753831958,-250.0,0.000415,2]
[321013422,1711753831968,-9846.78707816,0.00041761,2]
[321013423,1711753831981,-672.26775027,0.00041761,2]
[321013425,1711753832156,-1281.00207836,0.00041761,2]
[321013480,1711753839848,-529.03854864,0.00041761,2]
[321013481,1711753839909,-1220.2459615,0.00041761,2]
[321013482,1711753839922,-258.54871417,0.00041761,2]
[321013483,1711753839935,-1233.29842755,0.00041761,2]
[321013484,1711753839949,-707.57066065,0.00041761,2]
[321013485,1711753839961,-616.6857906,0.00041761,2]
[321013486,1711753840004,-3960.0,0.00041761,2]
[321013491,1711753843179,-3574.5549901,0.00041761,2]
[321013492,1711753843190,-1633.61,0.00041907,2]
[321013493,1711753843199,-500.0,0.00041907,2]
[321013494,1711753843209,-2695.67774357,0.00042095,2]
[321013495,1711753843218,-164.70133776,0.00042107,10]
[321013496,1711753843228,-32420.31777099,0.00042107,2]
[321013497,1711753843237,-3603.91788278,0.00042108,2]
[321013498,1711753843247,-172.5891312,0.00042108,2]
[321013499,1711753843256,-631.36427832,0.00042185,4]
[321013500,1711753843265,-291.05456337,0.00042185,2]
[321013501,1711753843274,-1904.50942371,0.00042185,4]
[321013502,1711753843283,-499.99,0.00042185,2]
[321013503,1711753843292,-166.59,0.00042197,2]
[321013504,1711753843301,-166.59,0.00042197,2]
[321013505,1711753843310,-166.59,0.00042197,2]
[321013506,1711753843320,-3212.64728557,0.00042204,2]
[321013507,1711753843329,-781.27637635,0.00042205,4]
[321013508,1711753843338,-1055.23313914,0.00042205,4]
[321013509,1711753843347,-447.0,0.00042205,30]
[321013510,1711753843356,-3125.54125214,0.00042207,30]
[321013512,1711753843417,-4345.73069983,0.00042207,30]
[321013513,1711753843436,-2622.16429986,0.00042207,30]
[321013532,1711753845929,-60566.10404058,0.00042207,30]
[321013533,1711753845946,-120111.02638844,0.00042207,30]
[321013534,1711753847685,170.55,0.00024803,2]
[321013536,1711753896017,223.94252704,0.00024,2]
[321013642,1711753968214,269.45910731,0.00018,2]
[321013655,1711754895596,192.76307471,0.0003,4]
[321013732,1711755038031,-568.95,0.00039067,2]
[321013734,1711755038040,-151.61319479,0.000397,2]
[321013735,1711755038050,-150.33,0.00040822,2]
[321013736,1711755038060,-11465.96807,0.00040852,2]
[321013737,1711755038069,-1000.0,0.00040914,2]
[321013738,1711755038078,-201.11,0.00040989,2]
[321013739,1711755038087,-291.06,0.00041008,2]
[321013740,1711755038096,-150.0,0.00041058,2]
[321013741,1711755038105,-250.0,0.00041084,2]
[321013742,1711755038114,-180.0,0.00041096,2]
[321013743,1711755038123,-150.0,0.00041177,2]
[321013744,1711755038132,-250.0,0.00041191,112]
[321013745,1711755038141,-169.89,0.00041191,2]
[321013746,1711755038150,-250.0,0.00041246,2]
[321013747,1711755038160,-3005.669,0.00041293,2]
[321013748,1711755038169,-568.95,0.0004133,2]
[321013749,1711755038179,-1361.34,0.00041393,2]
[321013750,1711755038188,-158.16,0.00041443,15]
[321013751,1711755038198,-23900.0,0.00041794,2]
[321013752,1711755038207,-500.0,0.00041829,2]
[321013753,1711755038218,-432.3772,0.00042007,2]
[321013754,1711755038228,-150.0,0.00042031,2]
[321013755,1711755038238,-176.51,0.00042037,2]
[321013756,1711755038247,-150.0,0.00042059,2]
[321013757,1711755038257,-3034.16105468,0.00042106,2]
[321013758,1711755038320,-209.36503984,0.00042106,2]
[321013759,1711755038329,-2572.56256016,0.00042106,2]
[321013760,1711755038371,-4276.35443984,0.00042106,2]
[321013761,1711755038380,-164.70133776,0.00042108,10]
[321013762,1711755038389,-500.0,0.00042196,2]
[321013763,1711755038399,-166.59,0.00042197,2]
[321013764,1711755038408,-166.59,0.00042197,2]
[321013765,1711755038417,-12690.9454224,0.000422,7]
[321013766,1711755038428,-675.3582613,0.000422,7]
[321013767,1711755038440,-1491.82679098,0.000422,7]
[321013779,1711755040047,-1148.87476925,0.000422,7]
[321013785,1711755043039,-45.99475607,0.000422,7]
[321013786,1711755043049,-192.22165366,0.000422,2]
[321013787,1711755043058,-499.99,0.00042204,2]
[321013788,1711755043068,-155.0,0.00042204,4]
[321013789,1711755043077,-392.72411,0.00042204,12]
[321013790,1711755043087,-263.45844408,0.00042205,2]
[321013791,1711755043096,-1614.55918904,0.00042205,4]
[321013792,1711755043106,-372.18809735,0.00042206,60]
[321013793,1711755043115,-1472.65820181,0.00042206,2]
[321013794,1711755043127,-2914.99179819,0.00042206,2]
[321013795,1711755043138,-2174.43167702,0.00042206,2]
[321013796,1711755043571,-2213.21832298,0.00042206,2]
[321013797,1711755043581,-591.02722889,0.00042206,2]
[321013798,1711755043592,-3796.62277111,0.00042206,2]
[321013799,1711755043601,-2195.16752002,0.00042206,2]
[321013801,1711755043656,-2192.48247998,0.00042206,2]
[321013803,1711755043666,-1691.02603783,0.00042206,2]
[321013842,1711755046168,-2432.09252417,0.00042106,2]
[321013843,1711755046282,-8477.9934473,0.00042106,2]
[321013844,1711755046299,-18704.19092372,0.00042106,2]
[321013845,1711755046308,-2696.62396217,0.00042206,2]
[321013846,1711755046318,-4387.65,0.00042206,2]
[321013847,1711755046328,-4387.65,0.00042206,2]
[321013848,1711755046337,-4387.65,0.00042206,2]
[321013849,1711755046347,-4387.65,0.00042206,2]
[321013850,1711755046357,-4387.65,0.00042206,2]
[321013851,1711755046366,-4387.65,0.00042206,2]
[321013852,1711755046375,-2993.15444411,0.00042206,2]
[321013853,1711755060865,640.40732552,0.00037984,4]
[321013854,1711755206421,182.17,0.00033525,2]
[321013856,1711755355760,250.0,0.00033,3]
[321013857,1711755462899,-25978.31643737,0.00038964,4]
[321013859,1711755871785,-6614.18318628,0.00038399,4]
[321013871,1711756168145,-628.0,0.000384,2]
[321013872,1711756168167,-599.7,0.00038759,2]
[321013873,1711756168187,-500.0,0.00038965,2]
[321013888,1711756232300,-250.0,0.0004023,2]
[321013889,1711756232309,-1469.56,0.00040295,2]
[321013890,1711756232318,-229.35,0.00040309,112]